fUST/lending_fUST_20260118
["ID","MTS","AMOUNT","RATE_DAILY","PERIOD"]
[402486908,1768685452135,-1173.63,0.00016712,3]
[402486909,1768685452145,-500.0,0.00016712,3]
[402486910,1768685452155,-500.0,0.00016712,3]
[402486911,1768685452164,-500.0,0.00016712,3]
[402486912,1768685452173,-500.0,0.00016712,3]
[402486913,1768685452183,-500.0,0.00016712,3]
[402486914,1768685452193,-543.38,0.00016712,3]
[402486915,1768685452203,-500.0,0.00016712,3]
[402486916,1768685452213,-500.0,0.00016712,3]
[402486917,1768685452222,-500.0,0.00016712,3]
[402486918,1768685452232,-500.0,0.00016712,3]
[402486919,1768685452242,-765.73,0.00016712,3]
[402486920,1768685452252,-500.0,0.00016712,3]
[402486921,1768685452261,-500.0,0.00016712,3]
[402486922,1768685452274,-1330.48,0.00016712,3]
[402486923,1768685452284,-500.0,0.00016712,3]
[402486924,1768685452294,-500.0,0.00016712,3]
[402486925,1768685452304,-151.0,0.00016712,2]
[402486926,1768685452316,-500.0,0.00016712,3]
[402486927,1768685452325,-151.0,0.00016712,2]
[402486928,1768685452335,-500.0,0.00016712,3]
[402486929,1768685452345,-500.0,0.00016712,3]
[402486930,1768685452355,-707.52,0.00016712,3]
[402486931,1768685452364,-151.0,0.00016712,2]
[402486932,1768685452374,-500.0,0.00016712,3]
[402486933,1768685452384,-151.0,0.00016712,2]
[402486934,1768685452396,-500.0,0.00016712,3]
[402486935,1768685452406,-151.0,0.00016712,2]
[402486936,1768685452417,-151.0,0.00016712,2]
[402486937,1768685452428,-500.0,0.00016712,3]
[402486938,1768685452438,-765.45,0.00016712,3]
[402486939,1768685452453,-500.0,0.00016712,3]
[402486940,1768685452463,-500.0,0.00016712,3]
[402486941,1768685452474,-500.0,0.00016712,3]
[402486942,1768685452485,-500.0,0.00016712,3]
[402486943,1768685452496,-500.0,0.00016712,3]
[402486944,1768685452506,-500.0,0.00016712,3]
[402486945,1768685452516,-1456.27,0.00016712,3]
[402486946,1768685452527,-500.0,0.00016712,3]
[402486947,1768685452536,-500.0,0.00016712,3]
[402486948,1768685452546,-1117.34,0.00016712,3]
[402486949,1768685452556,-500.0,0.00016712,3]
[402486950,1768685452566,-500.0,0.00016712,3]
[402486951,1768685452576,-500.0,0.00016712,3]
[402486952,1768685452586,-500.0,0.00016712,3]
[402486953,1768685452596,-500.0,0.00016712,3]
[402486954,1768685452606,-725.5,0.00016712,3]
[402486955,1768685452616,-500.0,0.00016712,3]
[402486956,1768685452626,-500.0,0.00016712,3]
[402486957,1768685452636,-500.0,0.00016712,3]
[402486958,1768685452646,-392.31626832,0.00016712,3]
[402486959,1768685452656,-500.0,0.00016712,3]
[402486960,1768685452666,-500.0,0.00016712,3]
[402486961,1768685452676,-694.74,0.00016712,3]
[402486962,1768685452686,-500.0,0.00016712,3]
[402486963,1768685452695,-961.19,0.00016712,3]
[402486964,1768685452706,-644.15,0.00016712,3]
[402486965,1768685452716,-659.96,0.00016712,3]
[402486966,1768685452725,-500.0,0.00016712,3]
[402486967,1768685452735,-500.0,0.00016712,3]
[402486968,1768685452746,-500.0,0.00016712,3]
[402486969,1768685452755,-500.0,0.00016712,3]
[402486970,1768685452765,-500.0,0.00016712,3]
[402486971,1768685452776,-661.06,0.00016712,3]
[402486972,1768685452785,-500.0,0.00016712,3]
[402486973,1768685452795,-500.0,0.00016712,3]
[402486974,1768685452805,-843.65,0.00016712,3]
[402486975,1768685452815,-161.63217718,0.00016712,3]
[402486976,1768685452825,-606.30623582,0.00016712,3]
[402486977,1768685452835,-500.0,0.00016712,3]
[402486978,1768685452844,-500.0,0.00016712,3]
[402486979,1768685452854,-500.0,0.00016712,3]
[402486980,1768685452864,-500.0,0.00016712,3]
[402486981,1768685452874,-500.0,0.00016712,3]
[402486982,1768685452883,-500.0,0.00016712,3]
[402486983,1768685452892,-500.0,0.00016712,3]
[402486984,1768685452901,-619.32,0.00016712,3]
[402486985,1768685452911,-500.0,0.00016712,3]
[402486986,1768685452921,-500.0,0.00016712,3]
[402486987,1768685452932,-500.0,0.00016712,3]
[402486988,1768685452942,-500.0,0.00016712,3]
[402486989,1768685452952,-775.68,0.00016712,3]
[402486990,1768685452963,-500.0,0.00016712,3]
[402486991,1768685452973,-523.94812621,0.00016712,3]
[402486992,1768685452983,-1151.82,0.00016712,3]
[402486993,1768685452992,-687.87,0.00016712,3]
[402486994,1768685453003,-500.0,0.00016712,3]
[402486995,1768685453012,-500.0,0.00016712,3]
[402486996,1768685453023,-570.93,0.00016712,3]
[402486997,1768685453032,-500.0,0.00016712,3]
[402486998,1768685453042,-1032.64,0.00016712,3]
[402486999,1768685453052,-500.0,0.00016712,3]
[402487000,1768685453062,-500.0,0.00016712,3]
[402487001,1768685453072,-500.0,0.00016712,3]
[402487002,1768685453082,-500.0,0.00016712,3]
[402487003,1768685453093,-500.0,0.00016712,3]
[402487004,1768685453104,-500.0,0.00016712,3]
[402487005,1768685453114,-777.23,0.00016712,3]
[402487006,1768685453123,-500.0,0.00016712,3]
[402487007,1768685453133,-500.0,0.00016712,3]
[402487008,1768685453143,-500.0,0.00016712,3]
[402487009,1768685453153,-500.0,0.00016712,3]
[402487010,1768685453163,-500.0,0.00016712,3]
[402487011,1768685453173,-500.0,0.00016712,3]
[402487012,1768685453183,-500.0,0.00016712,3]
[402487013,1768685453193,-500.0,0.00016712,3]
[402487014,1768685453203,-500.0,0.00016712,3]
[402487015,1768685453214,-500.0,0.00016712,3]
[402487016,1768685453224,-500.0,0.00016712,3]
[402487017,1768685453235,-500.0,0.00016712,3]
[402487018,1768685453246,-500.0,0.00016712,3]
[402487019,1768685453256,-500.0,0.00016712,3]
[402487020,1768685453267,-791.29,0.00016712,3]
[402487021,1768685453279,-800.24,0.00016712,3]
[402487022,1768685453290,-1081.02,0.00016712,3]
[402487023,1768685453299,-500.0,0.00016712,3]
[402487024,1768685453310,-843.09,0.00016712,3]
[402487025,1768685453320,-500.0,0.00016712,3]
[402487026,1768685453330,-500.0,0.00016712,3]
[402487027,1768685453341,-500.0,0.00016712,3]
[402487028,1768685453352,-707.25,0.00016712,3]
[402487029,1768685453362,-500.0,0.00016712,3]
[402487030,1768685453372,-500.0,0.00016712,3]
[402487031,1768685453381,-771.21,0.00016712,3]
[402487032,1768685453391,-466.05554011,0.00016712,3]
[402487033,1768685453401,-500.0,0.00016712,3]
[402487034,1768685453411,-500.0,0.00016712,3]
[402487035,1768685453421,-532.59,0.00016712,3]
[402487036,1768685453431,-500.0,0.00016712,3]
[402487037,1768685453441,-500.0,0.00016712,3]
[402487038,1768685453451,-534.25045514,0.00016712,3]
[402487039,1768685453460,-500.0,0.00016712,3]
[402487040,1768685453470,-500.0,0.00016712,3]
[402487041,1768685453480,-500.0,0.00016712,3]
[402487042,1768685453490,-794.73,0.00016712,3]
[402487043,1768685453500,-500.0,0.00016712,3]
[402487044,1768685453510,-500.0,0.00016712,3]
[402487045,1768685453520,-932.84,0.00016712,3]
[402487046,1768685453531,-500.0,0.00016712,3]
[402487047,1768685453541,-500.0,0.00016712,3]
[402487048,1768685453551,-935.66,0.00016712,3]
[402487049,1768685453561,-500.0,0.00016712,3]
[402487050,1768685453571,-1551.42,0.00016712,3]
[402487051,1768685453582,-962.51,0.00016712,3]
[402487052,1768685453592,-907.15,0.00016712,3]
[402487053,1768685453602,-500.0,0.00016712,3]
[402487054,1768685453612,-500.0,0.00016712,3]
[402487055,1768685453622,-1769.73,0.00016712,3]
[402487056,1768685453632,-694.52,0.00016712,3]
[402487057,1768685453643,-500.0,0.00016712,3]
[402487058,1768685453653,-500.0,0.00016712,3]
[402487059,1768685453666,-500.0,0.00016712,3]
[402487060,1768685453676,-1391.6,0.00016712,3]
[402487061,1768685453686,-512.95426722,0.00016712,3]
[402487062,1768685453696,-500.0,0.00016712,3]
[402487063,1768685453707,-500.0,0.00016712,3]
[402487064,1768685453717,-500.0,0.00016712,3]
[402487065,1768685453727,-1200.0,0.00016712,2]
[402487066,1768685453737,-500.0,0.00016712,3]
[402487067,1768685453747,-500.0,0.00016712,3]
[402487068,1768685453757,-500.0,0.00016712,3]
[402487069,1768685453766,-500.0,0.00016712,3]
[402487070,1768685453776,-500.0,0.00016712,3]
[402487071,1768685453787,-500.0,0.00016712,3]
[402487072,1768685453797,-500.0,0.00016712,3]
[402487073,1768685453809,-500.0,0.00016712,2]
[402487074,1768685453819,-500.0,0.00016712,3]
[402487075,1768685453828,-500.0,0.00016712,3]
[402487076,1768685453838,-500.0,0.00016712,3]
[402487077,1768685453848,-500.0,0.00016712,3]
[402487078,1768685453859,-500.0,0.00016712,3]
[402487079,1768685453869,-500.0,0.00016712,3]
[402487080,1768685453879,-500.0,0.00016712,3]
[402487081,1768685453888,-500.0,0.00016712,3]
[402487082,1768685453899,-500.0,0.00016712,3]
[402487083,1768685453909,-500.0,0.00016712,3]
[402487084,1768685453919,-500.0,0.00016712,3]
[402487085,1768685453929,-500.0,0.00016712,3]
[402487086,1768685453939,-1633.97,0.00016712,3]
[402487087,1768685453949,-500.0,0.00016712,3]
[402487088,1768685454213,-500.0,0.00016712,3]
[402487089,1768685454227,-253.82902155,0.00016712,3]
[402487090,1768685454237,-511.03,0.00016712,3]
[402487091,1768685454247,-500.0,0.00016712,3]
[402487092,1768685454258,-1000.0,0.00016712,2]
[402487093,1768685454276,-701.17,0.00016712,3]
[402487094,1768685454286,-500.0,0.00016712,3]
[402487095,1768685454296,-500.0,0.00016712,3]
[402487096,1768685454305,-500.0,0.00016712,3]
[402487097,1768685454315,-609.19,0.00016712,3]
[402487098,1768685454324,-500.0,0.00016712,3]
[402487099,1768685454334,-500.0,0.00016712,3]
[402487100,1768685454343,-594.69,0.00016712,3]
[402487101,1768685454353,-500.0,0.00016712,3]
[402487102,1768685454363,-500.0,0.00016712,3]
[402487103,1768685454372,-500.0,0.00016712,3]
[402487104,1768685454382,-2076.46,0.00016712,3]
[402487105,1768685454391,-1191.65,0.00016712,3]
[402487106,1768685454400,-500.0,0.00016712,3]
[402487107,1768685454410,-822.5,0.00016712,3]
[402487108,1768685454419,-500.0,0.00016712,3]
[402487109,1768685454429,-632.68,0.00016712,3]
[402487110,1768685454439,-500.0,0.00016712,3]
[402487111,1768685454449,-500.0,0.00016712,3]
[402487112,1768685454459,-500.0,0.00016712,3]
[402487113,1768685454469,-500.0,0.00016712,3]
[402487114,1768685454479,-500.0,0.00016712,3]
[402487115,1768685454488,-1719.73,0.00016712,3]
[402487116,1768685454498,-241.75904852,0.00016712,3]
[402487117,1768685454507,-596.26,0.00016712,3]
[402487118,1768685454517,-443.90722234,0.00016712,3]
[402487119,1768685454526,-500.0,0.00016712,3]
[402487120,1768685454536,-724.13,0.00016712,3]
[402487121,1768685454547,-500.0,0.00016712,3]
[402487122,1768685454556,-1113.15,0.00016712,3]
[402487123,1768685454566,-500.0,0.00016712,3]
[402487124,1768685454576,-1656.75,0.00016712,3]
[402487125,1768685454586,-675.39,0.00016712,3]
[402487126,1768685454595,-645.0,0.00016712,3]
[402487127,1768685454605,-500.0,0.00016712,3]
[402487128,1768685454615,-500.0,0.00016712,3]
[402487129,1768685454626,-465.90987905,0.00016712,3]
[402487130,1768685454636,-500.0,0.00016712,3]
[402487131,1768685454646,-500.0,0.00016712,3]
[402487132,1768685454656,-531.28,0.00016712,3]
[402487133,1768685454666,-500.0,0.00016712,3]
[402487134,1768685454676,-683.55,0.00016712,3]
[402487135,1768685454685,-500.0,0.00016712,3]
[402487136,1768685454695,-71.00353415,0.00016712,3]
[402487137,1768685455097,-931.98646585,0.00016712,3]
[402487138,1768685455107,-500.0,0.00016712,3]
[402487139,1768685455116,-500.0,0.00016712,3]
[402487140,1768685455126,-500.0,0.00016712,3]
[402487141,1768685455136,-500.0,0.00016712,3]
[402487142,1768685455145,-500.0,0.00016712,3]
[402487143,1768685455155,-500.0,0.00016712,3]
[402487144,1768685455165,-500.0,0.00016712,3]
[402487145,1768685455174,-500.0,0.00016712,3]
[402487146,1768685455184,-500.0,0.00016712,3]
[402487147,1768685455193,-500.0,0.00016712,3]
[402487148,1768685455203,-500.0,0.00016712,3]
[402487149,1768685455212,-500.0,0.00016712,3]
[402487150,1768685455222,-604.25264706,0.00016712,3]
[402487151,1768685455231,-500.0,0.00016712,3]
[402487152,1768685455240,-500.0,0.00016712,3]
[402487153,1768685455250,-206.1202293,0.00016712,3]
[402487154,1768685455263,-293.8797707,0.00016712,3]
[402487155,1768685455277,-500.0,0.00016712,3]
[402487156,1768685455287,-615.65,0.00016712,3]
[402487157,1768685455296,-500.0,0.00016712,3]
[402487158,1768685455307,-1322.81,0.00016712,3]
[402487159,1768685455316,-500.0,0.00016712,3]
[402487160,1768685455325,-500.0,0.00016712,3]
[402487161,1768685455334,-500.0,0.00016712,3]
[402487162,1768685455347,-1116.75,0.00016712,3]
[402487163,1768685455356,-500.0,0.00016712,3]
[402487164,1768685455366,-500.0,0.00016712,3]
[402487165,1768685455375,-500.0,0.00016712,3]
[402487166,1768685455384,-926.04,0.00016712,3]
[402487167,1768685455394,-500.0,0.00016712,3]
[402487168,1768685455403,-1113.91,0.00016712,3]
[402487169,1768685455413,-500.0,0.00016712,3]
[402487170,1768685455422,-500.0,0.00016712,3]
[402487171,1768685455431,-500.0,0.00016712,3]
[402487172,1768685455440,-772.14,0.00016712,3]
[402487173,1768685455449,-610.66,0.00016712,3]
[402487174,1768685455459,-890.03,0.00016712,3]
[402487175,1768685455468,-1264.47,0.00016712,3]
[402487176,1768685455478,-500.0,0.00016712,3]
[402487177,1768685455487,-500.0,0.00016712,3]
[402487178,1768685455496,-500.0,0.00016712,3]
[402487179,1768685455505,-1281.78,0.00016712,3]
[402487180,1768685455514,-500.0,0.00016712,3]
[402487181,1768685455523,-1383.19,0.00016712,3]
[402487182,1768685455533,-1644.95,0.00016712,3]
[402487183,1768685455543,-675.48,0.00016712,3]
[402487184,1768685455552,-500.0,0.00016712,3]
[402487185,1768685455561,-511.95572068,0.00016712,3]
[402487186,1768685455571,-624.31598401,0.00016712,3]
[402487187,1768685455580,-500.0,0.00016712,3]
[402487188,1768685455589,-1060.67,0.00016712,3]
[402487189,1768685455600,-659.86,0.00016712,3]
[402487190,1768685455609,-1860.69,0.00016712,3]
[402487191,1768685455619,-500.0,0.00016712,3]
[402487192,1768685455628,-500.0,0.00016712,3]
[402487193,1768685455638,-500.0,0.00016712,3]
[402487194,1768685455647,-529.99,0.00016712,3]
[402487195,1768685455656,-500.0,0.00016712,3]
[402487196,1768685455666,-752.26,0.00016712,3]
[402487197,1768685455675,-500.0,0.00016712,3]
[402487198,1768685455684,-500.0,0.00016712,3]
[402487199,1768685455693,-500.0,0.00016712,3]
[402487200,1768685455702,-766.79,0.00016712,3]
[402487201,1768685455711,-500.0,0.00016712,3]
[402487202,1768685455721,-500.0,0.00016712,3]
[402487203,1768685455730,-557.85,0.00016712,3]
[402487204,1768685455740,-600.21,0.00016712,3]
[402487205,1768685455749,-500.0,0.00016712,3]
[402487206,1768685455759,-500.0,0.00016712,3]
[402487207,1768685455768,-500.0,0.00016712,3]
[402487208,1768685455778,-541.31799653,0.00016712,3]
[402487209,1768685455787,-500.0,0.00016712,3]
[402487210,1768685455796,-992.96,0.00016712,3]
[402487211,1768685455806,-500.0,0.00016712,3]
[402487212,1768685455815,-500.0,0.00016712,3]
[402487213,1768685455825,-1375.31,0.00016712,3]
[402487214,1768685455835,-2043.56,0.00016712,3]
[402487215,1768685455845,-500.0,0.00016712,3]
[402487216,1768685455854,-500.0,0.00016712,3]
[402487217,1768685455864,-500.0,0.00016712,3]
[402487218,1768685455873,-500.0,0.00016712,3]
[402487219,1768685455882,-500.0,0.00016712,3]
[402487220,1768685455892,-500.0,0.00016712,3]
[402487221,1768685455902,-500.0,0.00016712,3]
[402487222,1768685455911,-500.0,0.00016712,3]
[402487223,1768685455921,-500.0,0.00016712,3]
[402487224,1768685455930,-597.06,0.00016712,3]
[402487225,1768685455939,-652.11,0.00016712,3]
[402487226,1768685455949,-1039.7,0.00016712,3]
[402487227,1768685455958,-728.77,0.00016712,3]
[402487228,1768685455967,-1146.04,0.00016712,3]
[402487229,1768685455976,-500.0,0.00016712,3]
[402487230,1768685455986,-500.0,0.00016712,3]
[402487231,1768685455995,-500.0,0.00016712,3]
[402487232,1768685456005,-2176.82,0.00016712,3]
[402487233,1768685456014,-1893.94,0.00016712,3]
[402487234,1768685456023,-500.0,0.00016712,3]
[402487235,1768685456034,-948.78,0.00016712,3]
[402487236,1768685456043,-768.12,0.00016712,3]
[402487237,1768685456052,-500.0,0.00016712,3]
[402487238,1768685456062,-500.0,0.00016712,3]
[402487239,1768685456074,-500.0,0.00016712,3]
[402487240,1768685456083,-500.0,0.00016712,3]
[402487241,1768685456092,-775.8,0.00016712,3]
[402487242,1768685456102,-500.0,0.00016712,3]
[402487243,1768685456111,-500.0,0.00016712,3]
[402487244,1768685456120,-500.0,0.00016712,3]
[402487245,1768685456130,-500.0,0.00016712,3]
[402487246,1768685456139,-500.0,0.00016712,3]
[402487247,1768685456149,-500.0,0.00016712,3]
[402487248,1768685456158,-529.33,0.00016712,3]
[402487249,1768685456168,-500.0,0.00016712,3]
[402487250,1768685456177,-500.0,0.00016712,3]
[402487251,1768685456187,-872.79,0.00016712,3]
[402487252,1768685456196,-500.0,0.00016712,3]
[402487253,1768685456205,-500.0,0.00016712,3]
[402487254,1768685456215,-500.0,0.00016712,3]
[402487255,1768685456224,-500.0,0.00016712,3]
[402487256,1768685456233,-1168.97,0.00016712,3]
[402487257,1768685456242,-1331.60505822,0.00016712,3]
[402487258,1768685456252,-500.0,0.00016712,3]
[402487259,1768685456261,-1329.82,0.00016712,3]
[402487260,1768685456275,-979.4,0.00016712,3]
[402487261,1768685456285,-578.9,0.00016712,3]
[402487262,1768685456295,-500.0,0.00016712,3]
[402487263,1768685456305,-614.79,0.00016712,3]
[402487264,1768685456317,-500.0,0.00016712,3]
[402487265,1768685456336,-500.0,0.00016712,3]
[402487266,1768685456353,-500.0,0.00016712,3]
[402487267,1768685456362,-658.84,0.00016712,3]
[402487268,1768685456372,-500.0,0.00016712,3]
[402487269,1768685456382,-500.0,0.00016712,3]
[402487270,1768685456391,-500.0,0.00016712,3]
[402487271,1768685456401,-552.69,0.00016712,3]
[402487272,1768685456476,-832.62,0.00016712,3]
[402487273,1768685456486,-272.75784748,0.00016712,3]
[402487274,1768685456495,-500.0,0.00016712,3]
[402487275,1768685456504,-500.0,0.00016712,3]
[402487276,1768685456514,-500.0,0.00016712,3]
[402487277,1768685456523,-1244.06,0.00016712,3]
[402487278,1768685456533,-500.0,0.00016712,3]
[402487279,1768685456542,-1323.23,0.00016712,3]
[402487280,1768685456552,-2880.81,0.00016712,3]
[402487281,1768685456562,-16425.4456644,0.00016712,2]
[402487282,1768685456571,-500.0,0.00016712,3]
[402487283,1768685456580,-6357.57,0.00016712,3]
[402487284,1768685456589,-500.0,0.00016712,3]
[402487285,1768685456599,-827.76,0.00016712,3]
[402487286,1768685456608,-500.0,0.00016712,3]
[402487287,1768685456617,-1380.77,0.00016712,3]
[402487288,1768685456626,-500.0,0.00016712,3]
[402487289,1768685456636,-500.0,0.00016712,3]
[402487290,1768685456646,-257.23483558,0.00016712,3]
[402487291,1768685456655,-500.0,0.00016712,3]
[402487292,1768685456665,-500.0,0.00016712,3]
[402487293,1768685456675,-500.0,0.00016712,3]
[402487294,1768685456684,-572.36,0.00016712,3]
[402487295,1768685456694,-566.78,0.00016712,3]
[402487296,1768685456704,-500.0,0.00016712,3]
[402487297,1768685456718,-715.05,0.00016712,3]
[402487298,1768685456727,-500.0,0.00016712,3]
[402487299,1768685456737,-500.0,0.00016712,3]
[402487300,1768685456747,-500.0,0.00016712,3]
[402487301,1768685456756,-538.58,0.00016712,3]
[402487302,1768685456766,-994.14,0.00016712,3]
[402487303,1768685456775,-799.77,0.00016712,3]
[402487304,1768685456784,-500.0,0.00016712,3]
[402487305,1768685456794,-500.0,0.00016712,3]
[402487306,1768685456803,-500.0,0.00016712,3]
[402487307,1768685456814,-500.0,0.00016712,3]
[402487308,1768685456823,-1087.65,0.00016712,3]
[402487309,1768685456833,-500.0,0.00016712,3]
[402487310,1768685456842,-647.35,0.00016712,3]
[402487311,1768685456851,-500.0,0.00016712,3]
[402487312,1768685456861,-500.0,0.00016712,3]
[402487313,1768685456870,-500.0,0.00016712,3]
[402487314,1768685456879,-500.0,0.00016712,3]
[402487315,1768685456888,-860.39,0.00016712,3]
[402487316,1768685456898,-1033.59,0.00016712,3]
[402487317,1768685456908,-500.0,0.00016712,3]
[402487318,1768685456918,-500.0,0.00016712,3]
[402487319,1768685456929,-500.0,0.00016712,3]
[402487320,1768685456939,-500.0,0.00016712,3]
[402487321,1768685456948,-936.78,0.00016712,3]
[402487322,1768685456959,-367.54672722,0.00016712,3]
[402487323,1768685456974,-132.45327278,0.00016712,3]
[402487324,1768685456984,-500.0,0.00016712,3]
[402487325,1768685456993,-2390.17,0.00016712,3]
[402487326,1768685457003,-449.11803414,0.00016712,3]
[402487327,1768685457960,-170.21565955,0.00013446,2]
[402487328,1768685457970,-2576.88034045,0.00014006,2]
[402487329,1768685457981,-1903.27946898,0.00014006,2]
[402487330,1768685457992,-1683.31156499,0.00014006,2]
[402487331,1768685458003,-345.18526158,0.00014006,2]
[402487332,1768685458014,-426.13638038,0.00014006,2]
[402487333,1768685458039,-12005.67532547,0.00014006,2]
[402487334,1768685458050,-35681.6245685,0.00014006,2]
[402487335,1768685458061,-2173.77275859,0.00014006,2]
[402487336,1768685458072,-10165.81119226,0.00014006,2]
[402487337,1768685458083,-971.15581075,0.00014006,2]
[402487338,1768685458094,-4042.36482029,0.00014006,2]
[402487339,1768685458105,-1591.1925,0.00014006,2]
[402487340,1768685458116,-251.94492058,0.00014006,2]
[402487341,1768685458127,-1624.48012583,0.00014006,2]
[402487342,1768685458138,-4436.32508071,0.00014006,2]
[402487343,1768685458322,-9734.29460126,0.00014006,2]
[402487344,1768685458571,-10386.56527938,0.00014006,2]
[402487345,1768685458580,-200.85447827,0.00015446,2]
[402487346,1768685458590,-305.0799874,0.00016164,2]
[402487347,1768685458600,-1425.71,0.00016438,3]
[402487348,1768685458610,-1068.51,0.00016438,3]
[402487349,1768685458620,-627.68196586,0.00016712,3]
[402487350,1768685458629,-500.0,0.00016712,3]
[402487351,1768685458638,-500.0,0.00016712,3]
[402487352,1768685458648,-500.0,0.00016712,2]
[402487353,1768685458657,-500.0,0.00016712,3]
[402487354,1768685458667,-546.4,0.00016712,3]
[402487355,1768685458677,-500.0,0.00016712,3]
[402487356,1768685458686,-500.0,0.00016712,3]
[402487357,1768685458696,-927.12,0.00016712,3]
[402487358,1768685458705,-500.0,0.00016712,3]
[402487359,1768685458714,-1065.91,0.00016712,3]
[402487360,1768685458723,-783.29,0.00016712,3]
[402487361,1768685458733,-11772.63,0.00016712,3]
[402487362,1768685458742,-998.07,0.00016712,3]
[402487363,1768685458751,-596.66,0.00016712,3]
[402487364,1768685458760,-500.0,0.00016712,3]
[402487365,1768685458769,-500.0,0.00016712,3]
[402487366,1768685458778,-500.0,0.00016712,3]
[402487367,1768685458788,-500.0,0.00016712,3]
[402487368,1768685458800,-500.0,0.00016712,3]
[402487369,1768685458810,-724.52,0.00016712,3]
[402487370,1768685458820,-500.0,0.00016712,3]
[402487371,1768685458829,-500.0,0.00016712,3]
[402487372,1768685458839,-1175.75,0.00016712,3]
[402487373,1768685458848,-500.0,0.00016712,3]
[402487374,1768685458857,-928.59,0.00016712,3]
[402487375,1768685458866,-500.0,0.00016712,3]
[402487376,1768685458876,-500.0,0.00016712,3]
[402487377,1768685458885,-500.0,0.00016712,3]
[402487378,1768685458899,-1256.22,0.00016712,3]
[402487379,1768685458909,-500.0,0.00016712,3]
[402487380,1768685458918,-1054.8,0.00016712,3]
[402487381,1768685458927,-500.0,0.00016712,3]
[402487382,1768685458937,-500.0,0.00016712,3]
[402487383,1768685458947,-499.99622273,0.00016712,3]
[402487384,1768685458957,-726.59,0.00016712,3]
[402487385,1768685458967,-500.0,0.00016712,3]
[402487386,1768685458976,-395.32581344,0.00016712,3]
[402487387,1768685458986,-1320.61,0.00016712,3]
[402487388,1768685458996,-711.48,0.00016712,3]
[402487389,1768685459005,-500.0,0.00016712,3]
[402487390,1768685459015,-907.28,0.00016712,3]
[402487391,1768685459025,-929.32,0.00016712,3]
[402487392,1768685459035,-500.0,0.00016712,3]
[402487393,1768685459046,-483.43506742,0.00016712,3]
[402487394,1768685459055,-1057.38,0.00016712,3]
[402487395,1768685459064,-1212.6,0.00016712,3]
[402487396,1768685459074,-500.0,0.00016712,3]
[402487397,1768685459084,-679.94,0.00016712,3]
[402487398,1768685459094,-390.63830152,0.00016712,3]
[402487399,1768685459103,-2319.11,0.00016712,3]
[402487400,1768685459113,-500.0,0.00016712,3]
[402487401,1768685459123,-544.42342876,0.00016712,3]
[402487402,1768685459133,-1171.28,0.00016712,3]
[402487403,1768685459143,-693.13,0.00016712,3]
[402487404,1768685459152,-500.0,0.00016712,3]
[402487405,1768685459163,-500.0,0.00016712,3]
[402487406,1768685459173,-500.0,0.00016712,3]
[402487407,1768685459182,-500.0,0.00016712,3]